Cogmind - Beta 14 @@@ ROGUE MODE // 2024.09.21 @ 04:46:55 Player: KURIIRI Result: Self-destructed Performance ------------- Evolutions (6) 3000 Regions Visited (20) 4000 Robots Destroyed (194) 970 Value Destroyed (6192) 6192 Prototype IDs (50) 1000 Alien Tech Used (0) 0 Bonus (1892) 1892 TOTAL SCORE: 17054 Bonus ------- High Alert Combat Kills 103 Follower Combat Kills 431 Network Hubs Disabled 200 Aligned with FarCom 300 Met Zhirov 300 MAIN.C Attacked Warlord 500 Read Decrypted Archives 300 Friendly Fire -242 Cogmind --------- Core Integrity 17/1150 Matter 272/300 Energy 189/290 System Corruption 0% Temperature Cool (0) Movement Treading (250) Ox1 Location -4/Warlord Parts ------- > --- POWER (2) -------- Improved Deuterium Engine > --- PROPULSION (7) --- Armored Treads Improved VSS Leg Backup Propulsion III > --- UTILITY (8) ------ Power Amplifier Improved Signal Interpreter Advanced Targeting Computer Improved Melee Analysis Suite Improved Armor Integrity Analyzer Advanced Reaction Control System Improved Corruption Screen > --- WEAPON (2) ------- Backup Laser III Vortex Rail > --- INVENTORY (5) ---- Advanced Reaction Control System Trap Reconfigurator Vortex Rail (40) Vortex Lance Vortex Lance Peak State ------------ > --- POWER ------------ Micro Fission Core > --- PROPULSION ------- Improved VTOL Module Improved Cesium-ion Thruster Nuclear Pulse Array Nuclear Pulse Array > --- UTILITY ---------- Medium Storage Unit Improved Melee Analysis Suite Hacking Suite Hacking Suite Improved Hacking Suite Improved System Shield Advanced System Shield Trap Reconfigurator > --- WEAPON ----------- Variable Charge Gun Bore Cannon > --- INVENTORY -------- Improved VTOL Module Xenon Bombardment Thruster Improved Medium Armor Plating Improved System Shield System Restoration Module Improved Trap Extractor Improved Proton Missile Launcher Greatsword [Rating: 89] Favorites ----------- Power Light Deuterium Engine Engine Light Deuterium Engine Power Core Micro Fission Core Reactor Light Antimatter Reactor Propulsion Improved VTOL Module Treads Biometal Medium Treads Leg Improved VSS Leg Hover Unit Backup Propulsion III Flight Unit Improved VTOL Module Utility Hacking Suite Device Seismic Detector Storage Small Storage Unit Processor Improved Melee Analysis Suite Hackware Hacking Suite Protection Improved Medium Armor Plating Weapon Greatsword Energy Gun Quantum Rifle Energy Cannon Matter Neutralizer Ballistic Gun Light Assault Rifle Ballistic Cannon Bore Cannon Launcher Improved Proton Missile Launcher Impact Weapon Heavy Mace Slashing Weapon Greatsword Special Melee Weapon Datajack Build | -11 -10 -10 -9 -9 -9 -8 -8 -7 -7 -7 -6 -5 -5 -5 -5 -5 -4 -4 -4 -4 ------- Run | Yrd Mat Min Mat Min Exi Min Mat Fac Low Low Fac Fac Ext Cet Arc Hub Fac Upp Upp War Slots Evolved 12 | . . . 2 . . . 2 2 . . 2 2 . . . . 2 . . . Power 1 | . . . . . . . . . . . . . . . . . 1 . . . Propulsion 5 | . . . 1 . . . 1 . . . . 2 . . . . 1 . . . Utility 6 | . . . 1 . . . 1 2 . . 2 . . . . . . . . . Weapon . | . . . . . . . . . . . . . . . . . . . . . Parts Attached 259 | 3 2 . 18 . 1 6 28 38 . 2 31 46 31 . 4 8 16 16 1 8 Power 32 | . . . 5 . . . 3 4 . . 6 4 2 . 1 1 2 2 . 2 Engine 18 | . . . 5 . . . 2 4 . . 5 . . . . . 1 . . 1 Core 10 | . . . . . . . 1 . . . 1 4 2 . . 1 . 1 . . Reactor 4 | . . . . . . . . . . . . . . . 1 . 1 1 . 1 Propulsion 45 | . . . 8 . . . 7 2 . . 3 8 5 . . 4 3 3 . 2 Treads 2 | . . . . . . . . . . . . . . . . . 1 . . 1 Leg 3 | . . . . . . . . . . . . . . . . . 1 1 . 1 Wheel . | . . . . . . . . . . . . . . . . . . . . . Hover . | . . . . . . . . . . . . . . . . . . . . . Flight 40 | . . . 8 . . . 7 2 . . 3 8 5 . . 4 1 2 . . Utility 108 | 1 1 . 1 . . 3 9 21 . 2 20 24 10 . 1 2 6 4 1 2 Device 48 | 1 . . . . . 2 2 10 . . 8 14 5 . . 1 2 1 . 2 Storage 5 | . . . 1 . . . . 1 . . . 1 . . . . 2 . . . Processor 13 | . 1 . . . . . 2 . . . 3 1 2 . . . 1 2 1 . Hackware 11 | . . . . . . . 2 3 . . 2 2 . . 1 1 . . . . Protection 31 | . . . . . . 1 3 7 . 2 7 6 3 . . . 1 1 . . Artifact . | . . . . . . . . . . . . . . . . . . . . . Weapon 74 | 2 1 . 4 . 1 3 9 11 . . 2 10 14 . 2 1 5 7 . 2 Energy Gun 15 | 1 1 . . . . . . 1 . . . 2 4 . . . . 4 . 2 Energy Cannon 7 | . . . 1 . . 1 . . . . . . . . . . 3 2 . . Ballistic Gun 5 | 1 . . 2 . . . 1 . . . . . 1 . . . . . . . Ballistic Cannon 8 | . . . . . . . . . . . . . 6 . 1 . 1 . . . Launcher 9 | . . . . . . 1 2 2 . . . 2 2 . . . . . . . Special Weapon . | . . . . . . . . . . . . . . . . . . . . . Impact Weapon 11 | . . . 1 . . 1 4 2 . . . . . . . 1 1 1 . . Slashing Weapon 18 | . . . . . . . 2 6 . . 2 6 1 . 1 . . . . . Piercing Weapon . | . . . . . . . . . . . . . . . . . . . . . Special Melee Weapon 1 | . . . . . 1 . . . . . . . . . . . . . . . Unidentified Prototypes 17 | . . . 5 . . . 1 3 . . 1 2 . . 1 . 3 . . 1 Corrupted Parts 1 | . . . . . . . . . . . . . . . . . 1 . . . System Corruption 15 | . . . . . . . . . . . . . . . . . 15 . . . Parts Lost 48 | . . . 1 . . . 1 3 . . 2 6 6 . 1 5 9 12 2 . Power 8 | . . . . . . . 1 2 . . 1 . 1 . . . 2 1 . . Propulsion 14 | . . . 1 . . . . . . . . 2 1 . . 4 2 3 1 . Utility 19 | . . . . . . . . 1 . . 1 4 3 . 1 1 4 3 1 . Weapon 7 | . . . . . . . . . . . . . 1 . . . 1 5 . . Highest Loss Streak 9 | . . . 1 . . . 1 2 . . 2 1 3 . 1 4 5 9 2 . To Critical Strikes . | . . . . . . . . . . . . . . . . . . . . . Average Slot Usage (%) 77 | . 55 57 85 100 100 88 92 91 92 92 91 87 80 82 82 70 51 29 36 59 Engine 3 | . . . 6 11 11 11 6 6 7 7 5 . . . . . 2 . . 6 Core 1 | . . . . . . . 1 . . . . 4 4 5 5 3 2 1 . . Flight 21 | . . . 26 33 33 33 33 29 30 30 25 30 22 23 23 21 7 3 4 . Device 3 | . 14 14 11 11 11 11 2 . . . . 3 . 5 5 . 2 . . 8 Storage 5 | . . . 10 11 11 11 9 6 7 7 6 5 5 5 5 4 4 . . . Processor 10 | . 12 14 11 11 11 11 13 . . . 12 9 8 11 11 11 9 13 21 26 Hackware 14 | . . . . . . . 2 28 38 32 25 20 21 17 17 16 9 . . . Protection 3 | . . . . . . . 6 6 . 4 5 3 3 5 5 3 1 1 4 . Energy Gun 1 | . 14 14 2 . . . . . . . . . 3 . . . . 4 4 7 Ballistic Gun 1 | . 14 14 10 11 . . . . . . . . . . . . . . . . Impact Weapon 1 | . . . 5 11 11 10 8 2 . . . . . . . 4 . . . . Slashing Weapon 3 | . . . . . . . 7 6 7 7 5 4 . . 1 . . . . . Peak Build Rating 89 | 3 5 5 23 21 20 22 37 51 44 45 60 83 89 75 83 79 85 47 50 70 Average Rating 50 | 2 4 5 16 21 19 19 30 43 44 44 54 68 76 75 76 70 63 31 46 57 On Entrance 37 | . 3 5 5 21 21 19 21 37 44 44 45 59 83 75 75 71 55 39 47 26 Naked Turns . | . . . . . . . . . . . . . . . . . . . . . Heaviest Build 45 | 4 4 3 15 15 13 13 20 21 13 20 24 27 45 37 37 36 36 24 13 25 Greatest Support 39 | 3 3 3 15 15 15 15 20 21 21 21 22 37 38 38 38 39 30 30 13 20 Greatest Overweight (x) 11 | 1 1 . 2 . . . . 1 . . 1 1 11 . . 10 1 5 2 2 Average Overweight (x) . | . . . . . . . . . . . . . . . . . . . . . Largest Inventory Capacity 10 | 5 5 5 8 8 8 8 8 8 8 8 8 10 10 10 10 10 10 10 5 5 Average Capacity 7 | 5 5 5 7 8 8 8 8 7 8 8 8 8 10 10 10 9 5 5 5 5 Most Carried 10 | 1 5 5 8 8 8 8 8 8 8 8 8 9 10 10 10 10 9 9 5 5 Average Carried 7 | . 3 5 6 8 7 7 7 7 8 7 7 7 9 10 9 8 4 5 4 4 Final Capacity 10 | 5 5 5 8 8 8 8 8 8 8 8 8 10 10 10 10 5 10 5 5 5 Final Carried 10 | 1 5 5 8 8 8 8 8 8 8 7 8 9 10 10 10 4 9 5 5 5 Class Distribution -------------------- 51% | Hacker-Sprinter 17% | Mutant 7% | Commander-Mutant 6% | Hacker-Mutant 6% | Sprinter 5% | Scavenger-Mutant Dominant Class ---------------- Mutant | -10/Materials Mutant | -10/Mines Scavenger-Mutant | -9/Materials Scavenger-Mutant | -9/Mines Scavenger-Mutant | -9/Exiles Scout | -8/Mines Sprinter | -8/Materials Hacker-Sprinter | -7/Factory Hacker-Sprinter | -7/Lower Caves Hacker-Sprinter | -7/Lower Caves Hacker-Sprinter | -6/Factory Hacker-Sprinter | -5/Factory Hacker-Sprinter | -5/Extension Hacker-Sprinter | -5/Cetus Hacker-Sprinter | -5/Archives Hacker-Sprinter | -5/Hub_04(d) Mutant | -4/Factory Mutant | -4/Upper Caves Mutant | -4/Upper Caves Commander-Mutant | -4/Warlord Resources | -11 -10 -10 -9 -9 -9 -8 -8 -7 -7 -7 -6 -5 -5 -5 -5 -5 -4 -4 -4 -4 ----------- Run | Yrd Mat Min Mat Min Exi Min Mat Fac Low Low Fac Fac Ext Cet Arc Hub Fac Upp Upp War Matter Collected 3715 | 253 17 11 224 . . 161 323 455 . 20 280 536 718 . 30 90 284 234 27 52 Remotely . | . . . . . . . . . . . . . . . . . . . . . Salvage Created 9009 | 137 40 . 680 . . 190 882 1313 67 58 912 2117 1463 . 30 358 267 495 . . Parts 399 | 11 6 . 33 . . 8 38 75 2 2 47 99 47 . 2 7 12 10 . . Haulers Intercepted 23 | . . . 4 . . . 4 3 . . 3 5 4 . . . . . . . Recyclers Shooed 7 | . . . 2 . . . . . . . . . 3 . . . 2 . . . Parts Field Recycled . | . . . . . . . . . . . . . . . . . . . . . Retrieved Matter . | . . . . . . . . . . . . . . . . . . . . . Parts Self-Destructed 17 | . . . . . . . . . 2 6 . . . . . . . 7 2 . Prevented 1 | . . . . . . . . . . . . . . . . . . 1 . . Kills | -11 -10 -10 -9 -9 -9 -8 -8 -7 -7 -7 -6 -5 -5 -5 -5 -5 -4 -4 -4 -4 ------- Run | Yrd Mat Min Mat Min Exi Min Mat Fac Low Low Fac Fac Ext Cet Arc Hub Fac Upp Upp War Combat Hostiles Destroyed 99 | . . . 12 . . 5 13 13 1 1 7 20 11 . . 3 5 8 . . Melee 53 | . . . 4 . . 1 6 10 1 1 7 17 1 . . 1 2 2 . . Guns 11 | . . . 6 . . . . . . . . . 4 . . . . 1 . . Cannons 6 | . . . . . . . . . . . . . 1 . . . 3 2 . . AOE 14 | . . . . . . 2 6 1 . . . 3 2 . . . . . . . Classes Destroyed 13 | 2 1 . 4 . . . 4 2 . . . . . . . . . . . . Worker 7 | . . . . . . . . 4 . . . 2 . . . 1 . . . . Builder 5 | . . . . . . . 2 1 . . . . 2 . . . . . . . Tunneler 7 | 3 . . . . . 2 . 1 . . 1 . . . . . . . . . Hauler 23 | . . . 4 . . . 4 3 . . 3 5 4 . . . . . . . Recycler 10 | 1 . . 2 . . . . 1 . . . 2 2 . . 1 1 . . . Operator 6 | . . . . . . . 1 2 . . 1 1 1 . . . . . . . Watcher 35 | . 2 . 3 . . . 5 7 . . 5 9 2 . . 2 . . . . Swarmer 22 | . . . 7 . . 2 . . . . . 4 2 . . . 3 4 . . Grunt 32 | . . . 4 . . 3 7 4 . . . 5 5 . . 2 . 2 . . Brawler 1 | . . . . . . . 1 . . . . . . . . . . . . . Sentry 20 | . . . 1 . . . 4 4 1 . 3 2 3 . . 1 . 1 . . Hunter 7 | . . . . . . . 1 2 . 1 1 2 . . . . . . . . Programmer 17 | . . . . . . . . 3 . . 3 7 1 . . . 2 1 . . Thug 1 | . . . . . . . . . . . . . 1 . . . . . . . Guerrilla 1 | . . . . . . . . . . . . . 1 . . . . . . . Best Kill Streak 7 | 1 1 . 7 . . 4 5 5 1 1 2 6 5 . . 4 3 3 . . Combat Bots Only 5 | . . . 5 . . 3 4 3 1 1 1 4 4 . . 2 3 3 . . Max Kills in Single Turn 4 | 1 1 . 1 . . 1 4 3 1 1 1 3 2 . . 1 1 1 . . Gunslinging . | . . . . . . . . . . . . . . . . . . . . . Exploded 3 | . . . . . . 1 3 1 . . . 3 2 . . . . . . . Melee 1 | . . . 1 . . 1 1 1 1 1 1 1 1 . . 1 1 1 . . Uniques/NPCs Destroyed . | . . . . . . . . . . . . . . . . . . . . . Combat | -11 -10 -10 -9 -9 -9 -8 -8 -7 -7 -7 -6 -5 -5 -5 -5 -5 -4 -4 -4 -4 -------- Run | Yrd Mat Min Mat Min Exi Min Mat Fac Low Low Fac Fac Ext Cet Arc Hub Fac Upp Upp War Hostile Shots Fired 1016 | . . . 42 1 . 10 33 172 27 4 45 141 123 22 7 70 164 117 38 . Missed 437 | . . . 21 . . 5 10 77 11 . 26 78 51 12 3 35 66 27 15 . Damage Taken 9852 | . . . 213 7 . 75 377 938 108 61 253 1530 1452 254 84 824 1700 1536 440 . Core 2235 | . . . 121 7 . 8 67 183 16 13 61 245 165 . . 216 368 529 236 . Absorbed by Shields 13 | . . . . . . . . 8 . . . 5 . . . . . . . . Ignored by Resistances 10 | . . . . . . . 10 . . . . . . . . . . . . . Regen/Repaired (Parts) 1215 | . . . . . . . 32 490 . . 161 438 . . . . 63 . . 31 Core Remaining (%) 78 | 100 . 100 . . . 66 87 . . 69 92 . . . . 37 . . . . Volleys Fired 260 | 23 8 . 40 . . 6 8 5 . . . 6 94 4 1 . 17 29 19 . Largest 2 | 2 2 . 2 . . 1 1 1 . . . 1 2 1 1 . 2 2 1 . Hottest 225 | 70 70 . 91 . . 33 33 36 . . . 225 225 57 57 . 210 188 94 . Shots Fired 365 | 46 16 . 67 . . 6 8 5 . . . 6 130 4 1 . 18 37 21 . Gun 275 | 46 16 . 61 . . . . . . . . 4 99 . . . . 28 21 . Cannon 64 | . . . 6 . . . . . . . . . 26 4 1 . 18 9 . . Launcher 26 | . . . . . . 6 8 5 . . . 2 5 . . . . . . . Special . | . . . . . . . . . . . . . . . . . . . . . Kinetic 143 | 23 8 . 38 . . . . . . . . . 63 4 1 . 6 . . . Thermal 196 | 23 8 . 29 . . . . . . . . 4 62 . . . 12 37 21 . Explosive 14 | . . . . . . 6 8 . . . . . . . . . . . . . Electromagnetic 12 | . . . . . . . . 5 . . . 2 5 . . . . . . . Robot Hit Streak 11 | 4 6 . 6 . . 8 4 6 . . . . 11 2 . . 6 8 . . Robot Miss Streak 4 | 3 2 . 3 . . . 2 . . . . . 4 . 1 . 1 2 . . Penetration Max 1 | . . . . . . . . . . . . . 1 . . . . . . . Secondary Targets 1 | . . . . . . . . . . . . . . . . . . 1 . . Max Gunslinging Chain 1 | . . . . . . . . . . . . . . . . . . 1 . . Shots Hit Robots 459 | 28 7 . 59 . 5 11 34 53 3 2 32 71 89 1 2 14 16 32 . . Core Hits 200 | 8 3 . 20 . . 8 24 25 1 1 10 36 47 . . 4 6 7 . . Critical Kills 11 | . . . . . . 1 1 2 . . . . 4 . . 1 1 1 . . Critical Parts Destroyed 25 | . . . 1 . . 4 5 1 . . . . 8 1 . 4 . 1 . . Critical Strikes 62 | 1 2 . 1 . . 5 9 9 . . 1 6 19 1 . 5 1 2 . . Burn 9 | 1 2 . . . . . . . . . . . 6 . . . . . . . Meltdown 1 | . . . . . . . . . . . . . . . . . . 1 . . Destroy 14 | . . . . . . . . . . . . . 13 1 . . . . . . Smash 22 | . . . 1 . . 5 6 3 . . . . . . . 5 1 1 . . Sever 16 | . . . . . . . 3 6 . . 1 6 . . . . . . . . Melee Attacks 472 | . . . 24 1 5 16 61 113 4 2 48 134 11 . 2 33 7 11 . . Impact 144 | . . . 24 1 . 16 35 17 . . . . . . . 33 7 11 . . Slashing 323 | . . . . . . . 26 96 4 2 48 134 11 . 2 . . . . . Piercing . | . . . . . . . . . . . . . . . . . . . . . Sneak Attacks 49 | . . . 3 . 4 2 6 12 1 . 4 12 1 . . 3 1 . . . Combat Hostiles 6 | . . . . . . . 1 1 1 . . 2 . . . 1 . . . . Follow-up Attacks 5 | . . . . . . . 2 3 . . . . . . . . . . . . Damage Inflicted 23551 | 275 79 . 1473 . . 816 2214 3932 228 127 2421 5683 3364 16 294 820 665 1144 . . Guns 3433 | 275 79 . 427 . . . . . . . . . 1902 . . . . 750 . . Cannons 1087 | . . . 105 . . . . . . . . . 380 16 . . 396 190 . . Explosions 2080 | . . . . . . 253 647 280 . . . 121 779 . . . . . . . Melee 16933 | . . . 941 . . 563 1567 3652 228 127 2421 5562 285 . 294 820 269 204 . . Ramming 18 | . . . . . . . . . . . . . 18 . . . . . . . Kinetic 1614 | 123 17 . 244 . . . . . . . . . 1214 16 . . . . . . Thermal 3164 | 152 62 . 288 . . . . 32 . . . . 1294 . . . 396 940 . . Explosive 900 | . . . . . . 253 647 . . . . . . . . . . . . . Electromagnetic 922 | . . . . . . . . 248 . . . 121 553 . . . . . . . Impact 4244 | . . . 941 . . 563 921 526 . . . . . . . 820 269 204 . . Slashing 12689 | . . . . . . . 646 3126 228 127 2421 5562 285 . 294 . . . . . Piercing . | . . . . . . . . . . . . . . . . . . . . . Highest Corruption 22 | . . . 2 2 2 2 . 2 . . 3 5 5 . . 5 21 22 22 22 Average Corruption 8 | . . . 2 2 2 2 . 1 . . 2 3 4 . . 3 17 21 22 22 Corruption Purged 7 | . . . . . . . . 2 . . . . 5 . . . . . . . Corruption Blocked . | . . . . . . . . . . . . . . . . . . . . . Effects 96 | . . . 1 2 1 3 . . . . 4 30 7 . . 2 6 22 18 . Message Errors 26 | . . . 1 . 1 1 . . . . 1 12 2 . . 1 1 3 3 . Matter Fused 20 | . . . . 2 . 1 . . . . . 5 2 . . 1 1 6 2 . Heat Flow Errors 8 | . . . . . . . . . . . 1 3 . . . . 1 3 . . Energy Discharges 13 | . . . . . . . . . . . . 3 2 . . . 2 3 3 . Parts Rejected 1 | . . . . . . . . . . . . 1 . . . . . . . . Data Loss (minor) 18 | . . . . . . 1 . . . . 1 5 . . . . . 5 6 . Data Loss (major) 3 | . . . . . . . . . . . 1 . . . . . . . 2 . Misfires 3 | . . . . . . . . . . . . . . . . . . 1 2 . Alerts 1 | . . . . . . . . . . . . 1 . . . . . . . . Misdirections 1 | . . . . . . . . . . . . . . . . . 1 . . . Weapon Failures 2 | . . . . . . . . . . . . . 1 . . . . 1 . . Overload Shots 10 | . . . . . . . . . . . . 3 7 . . . . . . . Effects 2 | . . . . . . . . . . . . 1 1 . . . . . . . Energy Bleed 1 | . . . . . . . . . . . . . 1 . . . . . . . Short Circuit 1 | . . . . . . . . . . . . 1 . . . . . . . . Overflow Damage 3553 | . . . 173 . . 231 380 509 46 . 567 744 119 . 204 363 95 122 . . Projectiles 65 | . . . 1 . . . . . . . . . 11 . . . 35 18 . . Explosions 52 | . . . . . . . . . . . . . 52 . . . . . . . Melee 3436 | . . . 172 . . 231 380 509 46 . 567 744 56 . 204 363 60 104 . . Knockbacks 11 | . . . 2 . . 3 1 1 . . . . . . . 3 . 1 . . Impact 11 | . . . 2 . . 3 1 1 . . . . . . . 3 . 1 . . Kinetic . | . . . . . . . . . . . . . . . . . . . . . Secondary . | . . . . . . . . . . . . . . . . . . . . . Self-Inflicted Damage 9 | . . . . . . . . . . . . . 9 . . . . . . . Shots . | . . . . . . . . . . . . . . . . . . . . . Rammed 1 | . . . . . . . . . . . . . 1 . . . . . . . Targets Rammed 1 | . . . . . . . . . . . . . 1 . . . . . . . Kicked . | . . . . . . . . . . . . . . . . . . . . . Crushed . | . . . . . . . . . . . . . . . . . . . . . Highest Temperature 459 | 45 40 . 28 . . 5 22 1 . . 123 268 357 34 14 . 309 459 65 . Average Temperature 82 | 21 17 . 7 . . 3 14 1 . . 70 53 111 14 11 . 138 163 22 . Received Heat Transfer 1719 | . . . 51 . . 36 243 258 24 . 12 249 234 36 18 63 237 138 120 . Effects 6 | . . . . . . . . . . . . . 4 . . . . 2 . . Shutdowns 1 | . . . . . . . . . . . . . . . . . . 1 . . Interference 3 | . . . . . . . . . . . . . 3 . . . . . . . Matter Decay 1 | . . . . . . . . . . . . . 1 . . . . . . . Damage (minor) 1 | . . . . . . . . . . . . . . . . . . 1 . . Siege Activations . | . . . . . . . . . . . . . . . . . . . . . Robots Corrupted 24 | . . . 4 . . 3 6 4 . . . . 2 . . 4 1 . . . Combat Hostiles 11 | . . . 2 . . 2 1 2 . . . . 2 . . 2 . . . . Parts Fried 35 | . . . 4 . . 1 12 8 . . 1 . 1 . . 5 2 1 . . Impact Corruptions 53 | . . . 9 . . 9 14 6 . . . . . . . 9 2 4 . . Robots Melted 4 | . . . . . . . . . . . . . 1 . . . . 3 . . Combat Hostiles 4 | . . . . . . . . . . . . . 1 . . . . 3 . . Parts Melted 15 | . 1 . 1 . . . . . . . . . 6 . . 1 . 6 . . Heat Transferred 5340 | 518 333 . 585 . . . . 50 . . . . 2337 . . . 407 1110 . . Parts Sabotaged . | . . . . . . . . . . . . . . . . . . . . . Parts Stolen . | . . . . . . . . . . . . . . . . . . . . . Parts Stripped . | . . . . . . . . . . . . . . . . . . . . . Power Chain Reactions 4 | . . . . . . . . 3 . . . . 1 . . . . . . . Alert | -11 -10 -10 -9 -9 -9 -8 -8 -7 -7 -7 -6 -5 -5 -5 -5 -5 -4 -4 -4 -4 ------- Run | Yrd Mat Min Mat Min Exi Min Mat Fac Low Low Fac Fac Ext Cet Arc Hub Fac Upp Upp War Peak Influence 526 | 20 128 49 338 192 . 235 526 316 . . 176 512 511 127 75 396 221 . . . Initial 242 | . 13 49 18 131 . . 91 149 . . 95 85 242 22 50 25 182 . . . Average 178 | 8 68 49 204 133 . 153 285 146 . . 90 279 156 49 56 192 135 . . . Maximum Alert Level 2 | . . . 1 . . 1 2 1 . . . 2 2 . . 1 1 . . . Low Security (%) 61 | 100 100 100 38 100 . 57 19 79 . . 100 26 56 100 100 48 95 . . . Level 1 32 | . . . 61 . . 42 69 20 . . . 56 33 . . 51 4 . . . Level 2 5 | . . . . . . . 11 . . . . 17 9 . . . . . . . Level 3 . | . . . . . . . . . . . . . . . . . . . . . Level 4 . | . . . . . . . . . . . . . . . . . . . . . Level 5 . | . . . . . . . . . . . . . . . . . . . . . High Security . | . . . . . . . . . . . . . . . . . . . . . Max Security . | . . . . . . . . . . . . . . . . . . . . . Squads Dispatched 47 | . . . . . . . 3 8 . . 7 11 2 1 . 12 3 . . . Investigation 25 | . . . . . . . 2 5 . . 2 4 1 1 . 8 2 . . . Extermination 10 | . . . . . . . . 2 . . 3 3 . . . 1 1 . . . Reinforcement 11 | . . . . . . . 1 1 . . 2 3 1 . . 3 . . . . Assault 1 | . . . . . . . . . . . . 1 . . . . . . . . Garrison . | . . . . . . . . . . . . . . . . . . . . . Intercept . | . . . . . . . . . . . . . . . . . . . . . Searches Triggered 1 | . . . . . . . . . . . . 1 . . . . . . . . Construction Impeded 2 | . . . . . . . 1 . . . . . 1 . . . . . . . Haulers Reinforced 2 | . . . . . . . . . . . . 2 . . . . . . . . Active Scanning Responses . | . . . . . . . . . . . . . . . . . . . . . Cargo Convoy Interrupts . | . . . . . . . . . . . . . . . . . . . . . Stealth | -11 -10 -10 -9 -9 -9 -8 -8 -7 -7 -7 -6 -5 -5 -5 -5 -5 -4 -4 -4 -4 --------- Run | Yrd Mat Min Mat Min Exi Min Mat Fac Low Low Fac Fac Ext Cet Arc Hub Fac Upp Upp War Distress Signals 18 | . . . 3 . . . 1 4 . . . 1 3 2 . 4 . . . . Communications Jammed . | . . . . . . . . . . . . . . . . . . . . . Distress Signals . | . . . . . . . . . . . . . . . . . . . . . Times Spotted 311 | . 5 . 25 3 . 11 30 30 1 2 17 48 27 8 25 37 25 10 7 . Peak Tracking Total 20 | . 1 . 7 4 . 3 4 4 1 2 5 8 10 5 20 15 10 5 7 . Tactical Retreats 40 | . . . 2 1 . 2 6 3 . . 2 12 1 1 1 6 2 1 . . Traps | -11 -10 -10 -9 -9 -9 -8 -8 -7 -7 -7 -6 -5 -5 -5 -5 -5 -4 -4 -4 -4 ------- Run | Yrd Mat Min Mat Min Exi Min Mat Fac Low Low Fac Fac Ext Cet Arc Hub Fac Upp Upp War Traps Triggered 15 | . . . . . . . . 5 . . . 7 2 . . . 1 . . . Indirectly . | . . . . . . . . . . . . . . . . . . . . . Trap Hack Attempts . | . . . . . . . . . . . . . . . . . . . . . Triggered . | . . . . . . . . . . . . . . . . . . . . . Disarmed . | . . . . . . . . . . . . . . . . . . . . . Reprogrammed . | . . . . . . . . . . . . . . . . . . . . . Reused 28 | . . . . . . . 7 6 . . 5 10 . . . . . . . . Traps Reconfigurated 70 | . . . . . . . 14 20 . . 16 9 11 . . . . . . . Traps Extracted 14 | . . . . . . . . 5 . . 4 5 . . . . . . . . Installed 14 | . . . . . . . . 1 . . 6 7 . . . . . . . . Triggered 43 | . . . . . . . 7 8 . 1 5 10 . . . . . . . 12 Most Traps Carried 6 | . . . . . . . . 4 4 4 6 5 . . . . . . . . Machines | -11 -10 -10 -9 -9 -9 -8 -8 -7 -7 -7 -6 -5 -5 -5 -5 -5 -4 -4 -4 -4 ---------- Run | Yrd Mat Min Mat Min Exi Min Mat Fac Low Low Fac Fac Ext Cet Arc Hub Fac Upp Upp War Machines Disabled 15 | . . . . . . . 3 5 . . . 1 4 1 . 1 . . . . Max in Single Turn 1 | . . . . . . . 1 1 . . . 1 1 1 . 1 . . . . Garrison Access 13 | . . . . . . . 1 4 . . 3 3 . . . 1 1 . . . Network Hub 1 | . . . . . . . . . . . . . . . . 1 . . . . Energy Cycler 1 | . . . . . . . . . . . . . 1 . . . . . . . Machines Repaired . | . . . . . . . . . . . . . . . . . . . . . Machines Dismantled . | . . . . . . . . . . . . . . . . . . . . . Machines Sabotaged 1 | . . . . . . . . . . . . . . . . 1 . . . . Overloaded Fab Kills . | . . . . . . . . . . . . . . . . . . . . . Hacking | -11 -10 -10 -9 -9 -9 -8 -8 -7 -7 -7 -6 -5 -5 -5 -5 -5 -4 -4 -4 -4 --------- Run | Yrd Mat Min Mat Min Exi Min Mat Fac Low Low Fac Fac Ext Cet Arc Hub Fac Upp Upp War Machines Accessed 116 | . 4 . 2 . 1 . 12 26 . . 17 21 8 2 1 10 6 3 . 3 Terminals 72 | . 4 . 2 . . . 8 15 . . 10 11 8 2 . 9 3 . . . Fabricators 4 | . . . . . . . . 1 . . . 3 . . . . . . . . Repair Stations 11 | . . . . . . . 1 4 . . 2 3 . . . . 1 . . . Recycling Units 4 | . . . . . . . 1 . . . 1 1 . . . . 1 . . . Scanalyzers 4 | . . . . . . . 1 2 . . 1 . . . . . . . . . Garrison Access 13 | . . . . . . . 1 4 . . 3 3 . . . 1 1 . . . Total Hacks 405 | . 15 . 3 . 1 . 38 91 . . 48 74 36 7 25 27 29 5 . 6 Successful 242 | . 6 . 1 . 1 . 22 53 . . 31 48 16 4 25 11 13 5 . 6 Failed 160 | . 8 . 2 . . . 15 38 . . 16 26 20 3 . 16 16 . . . Catastrophic 23 | . 1 . 1 . . . 1 8 . . 1 . 4 . . 2 5 . . . Database Lockouts 3 | . 1 . . . . . 1 . . . 1 . . . . . . . . . Manual 183 | . 14 . 3 . 1 . 27 35 . . 15 30 23 . . 20 15 . . . Terminals 278 | . 15 . 3 . . . 31 58 . . 37 48 36 7 . 26 17 . . . Fabricators 7 | . . . . . . . . 1 . . . 6 . . . . . . . . Repair Stations 41 | . . . . . . . 2 15 . . 4 13 . . . . 7 . . . Recycling Units 9 | . . . . . . . 2 . . . 1 2 . . . . 4 . . . Scanalyzers 16 | . . . . . . . 2 13 . . 1 . . . . . . . . . Garrison Access 17 | . . . . . . . 1 4 . . 5 5 . . . 1 1 . . . Terminal Hacks 138 | . 3 . . . 1 . 11 20 . . 20 20 14 4 25 4 5 5 . 6 Record 45 | . . . . . . . . 1 . . 5 3 . 3 25 . . 3 . 5 Part Schematic 5 | . . . . . . . . . . . . 5 . . . . . . . . Robot Schematic 1 | . . . . . . . . . . . . 1 . . . . . . . . Robot Analysis 12 | . 2 . . . . . 1 6 . . 2 . 1 . . . . . . . Prototype ID Bank 4 | . . . . . . . 1 . . . 1 2 . . . . . . . . Open Door 5 | . . . . . . . . . . . . . 1 1 . . . 2 . 1 Branch Access Points 6 | . . . . . . . . 1 . . 2 1 1 . . . 1 . . . Machine Index 1 | . . . . . . . . . . . . 1 . . . . . . . . Terminal Index 5 | . . . . . . . 1 1 . . . 1 1 . . . 1 . . . Fabricator Index 1 | . . . . . . . . . . . . . . . . . 1 . . . Garrison Index 1 | . . . . . . . . . . . . . 1 . . . . . . . Alert Level 3 | . . . . . . . 2 . . . . 1 . . . . . . . . Unreport Threat 16 | . . . . . . . 2 4 . . 2 2 4 . . . 2 . . . Locate Traps 22 | . 1 . . . . . 3 5 . . 5 2 4 . . 2 . . . . Recall Reinforcements 2 | . . . . . . . . 1 . . 1 . . . . . . . . . Hauler Manifests 1 | . . . . . . . . . . . 1 . . . . . . . . . Registered Components 1 | . . . . . . . . . . . 1 . . . . . . . . . Zone Layout 6 | . . . . . . . 1 1 . . . 1 1 . . 2 . . . . Derelict Proto ID Bank 1 | . . . . . 1 . . . . . . . . . . . . . . . Fabricator Hacks 7 | . . . . . . . . 1 . . . 6 . . . . . . . . Network Status 1 | . . . . . . . . 1 . . . . . . . . . . . . Load Schematic 3 | . . . . . . . . . . . . 3 . . . . . . . . Build 3 | . . . . . . . . . . . . 3 . . . . . . . . Repair Station Hacks 33 | . . . . . . . 2 12 . . 4 12 . . . . 3 . . . Scan Component 17 | . . . . . . . 1 6 . . 2 6 . . . . 2 . . . Repair 16 | . . . . . . . 1 6 . . 2 6 . . . . 1 . . . Recycling Unit Hacks 2 | . . . . . . . . . . . 1 . . . . . 1 . . . Retrieve Components 2 | . . . . . . . . . . . 1 . . . . . 1 . . . Scanalyzer 11 | . . . . . . . . 11 . . . . . . . . . . . . Insert Component 5 | . . . . . . . . 5 . . . . . . . . . . . . Analyze 6 | . . . . . . . . 6 . . . . . . . . . . . . Garrison Access Hacks 13 | . . . . . . . 1 4 . . 3 3 . . . 1 1 . . . Seal Access 13 | . . . . . . . 1 4 . . 3 3 . . . 1 1 . . . Unauthorized Hacks 38 | . 3 . 1 . . . 8 5 . . 3 7 2 . . 6 3 . . . Terminals 28 | . 3 . 1 . . . 5 3 . . 2 5 2 . . 6 1 . . . Assimilate 4 | . . . . . . . 1 1 . . . 1 1 . . . . . . . Botnet 18 | . 2 . 1 . . . 4 2 . . 2 4 1 . . 1 1 . . . Operators 1 | . 1 . . . . . . . . . . . . . . . . . . . Sabotage 5 | . . . . . . . . . . . . . . . . 5 . . . . Fabricators . | . . . . . . . . . . . . . . . . . . . . . Repair Stations . | . . . . . . . . . . . . . . . . . . . . . Recycling Units 6 | . . . . . . . 2 . . . . 2 . . . . 2 . . . Reject 3 | . . . . . . . 1 . . . . 1 . . . . 1 . . . Mask 3 | . . . . . . . 1 . . . . 1 . . . . 1 . . . Scanalyzers 4 | . . . . . . . 1 2 . . 1 . . . . . . . . . Extract 4 | . . . . . . . 1 2 . . 1 . . . . . . . . . Garrison Access . | . . . . . . . . . . . . . . . . . . . . . Data Cores Recovered . | . . . . . . . . . . . . . . . . . . . . . Used . | . . . . . . . . . . . . . . . . . . . . . Hacking Detections 79 | . 4 . 2 . . . 7 17 . . 13 17 6 1 . 7 5 . . . Full Trace Events 14 | . . . . . . . . 3 . . 1 4 1 1 . 3 1 . . . Feedback Events . | . . . . . . . . . . . . . . . . . . . . . Feedback Blocked . | . . . . . . . . . . . . . . . . . . . . . Robot Schematics Acquired 1 | . . . . . . . . . . . . 1 . . . . . . . . Robots Built . | . . . . . . . . . . . . . . . . . . . . . Authchips . | . . . . . . . . . . . . . . . . . . . . . Time . | . . . . . . . . . . . . . . . . . . . . . Total Robot Build Rating . | . . . . . . . . . . . . . . . . . . . . . Part Schematics Acquired 20 | . . . . . . . 5 7 . . 3 5 . . . . . . . . Parts Built 3 | . . . . . . . . . . . . 3 . . . . . . . . Authchips . | . . . . . . . . . . . . . . . . . . . . . Time 153 | . . . . . . . . . . . . 153 . . . . . . . . Total Part Build Rating 17 | . . . . . . . . . . . . 17 . . . . . . . . Parts Repaired 16 | . . . . . . . 1 6 . . 2 6 . . . . 1 . . . Time 426 | . . . . . . . 38 113 . . 66 181 . . . . 28 . . . Parts Recycled . | . . . . . . . . . . . . . . . . . . . . . Recycled Matter . | . . . . . . . . . . . . . . . . . . . . . Retrieved Matter . | . . . . . . . . . . . . . . . . . . . . . Retrieved Components 10 | . . . . . . . . . . . 8 . . . . . 2 . . . Parts Scanalyzed 5 | . . . . . . . . 5 . . . . . . . . . . . . Part Schematics Acquired 5 | . . . . . . . . 5 . . . . . . . . . . . . Parts Damaged 1 | . . . . . . . . 1 . . . . . . . . . . . . Bothacking | -11 -10 -10 -9 -9 -9 -8 -8 -7 -7 -7 -6 -5 -5 -5 -5 -5 -4 -4 -4 -4 ------------ Run | Yrd Mat Min Mat Min Exi Min Mat Fac Low Low Fac Fac Ext Cet Arc Hub Fac Upp Upp War Used RIF Installer . | . . . . . . . . . . . . . . . . . . . . . Robots Hacked 3 | . . . . . 3 . . . . . . . . . . . . . . . Non-combat 3 | . . . . . 3 . . . . . . . . . . . . . . . Combat . | . . . . . . . . . . . . . . . . . . . . . Robot Hacks Applied 3 | . . . . . 3 . . . . . . . . . . . . . . . parse_system 3 | . . . . . 3 . . . . . . . . . . . . . . . Relay Couplers Released . | . . . . . . . . . . . . . . . . . . . . . Fabnet Peak Effective % . | . . . . . . . . . . . . . . . . . . . . . Robots Rewired 10 | . . . . . . . . . . . . . 5 . . . . . . 5 Allies Hacked . | . . . . . . . . . . . . . . . . . . . . . Hacks Repelled 1 | . . . . . . . . . . . . 1 . . . . . . . . Allies | -11 -10 -10 -9 -9 -9 -8 -8 -7 -7 -7 -6 -5 -5 -5 -5 -5 -4 -4 -4 -4 -------- Run | Yrd Mat Min Mat Min Exi Min Mat Fac Low Low Fac Fac Ext Cet Arc Hub Fac Upp Upp War Total Allies 14 | . . . . . . . 1 . . . . 1 7 . . . . . . 5 Largest Group 5 | . . . . . . . 1 . . . . 1 5 . . . . . . 5 Highest-Rated Group 273 | . . . . . . . 10 . . . . 10 163 . . . . . . 273 Highest-Rated Ally 65 | . . . . . . . 10 . . . . 10 39 . . . . . . 65 Total Orders 2 | . . . . . . . 1 . . . . . . . . . . . . 1 STAY 2 | . . . . . . . 1 . . . . . . . . . . . . 1 Ally Attacks 83 | . . . . . . . . . . . . . 72 . . . . . . 11 Total Damage 1905 | . . . . . . . . . . . . . 1323 . . . . . . 582 Kills 10 | . . . . . . . . . . . . . 9 . . . . . . 1 Allies Corrupted . | . . . . . . . . . . . . . . . . . . . . . Allies Melted . | . . . . . . . . . . . . . . . . . . . . . Intel | -11 -10 -10 -9 -9 -9 -8 -8 -7 -7 -7 -6 -5 -5 -5 -5 -5 -4 -4 -4 -4 ------- Run | Yrd Mat Min Mat Min Exi Min Mat Fac Low Low Fac Fac Ext Cet Arc Hub Fac Upp Upp War Robot Analysis Total 12 | . 2 . . . . . 1 6 . . 2 . 1 . . . . . . . Derelict Logs Recovered 6 | . . 2 . . . . . . 2 . . . . . . . . 1 1 . Drone Launches . | . . . . . . . . . . . . . . . . . . . . . Drone Recoveries . | . . . . . . . . . . . . . . . . . . . . . Exploration | -11 -10 -10 -9 -9 -9 -8 -8 -7 -7 -7 -6 -5 -5 -5 -5 -5 -4 -4 -4 -4 ------------- Run | Yrd Mat Min Mat Min Exi Min Mat Fac Low Low Fac Fac Ext Cet Arc Hub Fac Upp Upp War Turns Passed 12677 | 142 300 97 539 70 107 166 1106 2039 109 112 1001 1907 1359 142 82 482 906 537 415 1059 Spaces Moved 16829 | 85 331 184 607 197 282 282 1130 3627 317 344 1783 2810 1280 270 155 860 493 406 712 674 Core 788 | 85 331 184 46 . . . . . . . . . 1 . . 2 . 24 25 90 Treads 4 | . . . . . . . . . . . . . . . . . . . . 4 Legs 811 | . . . . . . . . . . . . . . . . . 251 97 . 463 Wheels . | . . . . . . . . . . . . . . . . . . . . . Hover 117 | . . . . . . . . . . . . . . . . . . . . 117 Flight 15109 | . . . 561 197 282 282 1130 3627 317 344 1783 2810 1279 270 155 858 242 285 687 . Fastest Speed 21 | 50 50 50 34 34 34 34 27 27 27 27 27 21 28 31 31 29 37 35 40 50 Average Speed 38 | 65 80 50 37 34 34 34 31 27 27 27 27 27 33 31 31 34 86 91 41 134 Slowest Speed 600 | 100 100 50 180 34 34 34 34 97 27 27 98 94 600 31 31 550 190 300 150 250 Overloaded Moves . | . . . . . . . . . . . . . . . . . . . . . Propulsion Burnouts . | . . . . . . . . . . . . . . . . . . . . . Robots Hopped 91 | . . . 4 6 . 1 11 14 . . 5 11 14 3 1 13 7 1 . . Cave-ins Triggered . | . . . . . . . . . . . . . . . . . . . . . Exploration Rate (%) 60 | 5 50 67 38 33 71 52 81 84 55 45 56 61 92 89 88 59 16 65 79 79 Regions Visited 20 Branch Regions 13 Pre-discovered Areas 1 | . . 1 . . . . . . . . . . . . . . . . . . Known Exits Taken 6 | . . . . . . . . 1 . . . 1 1 . . . 1 1 1 . Unknown Exits Taken 14 | 1 1 1 1 1 1 1 1 . 1 1 1 . . 1 1 1 . . . . Scrap Searched 11 | . . . . . . 1 . . . 7 . . . . . . . 1 2 . Spaces Dug 160 | . . . 6 1 . 3 17 32 . . 13 53 5 1 . 16 6 . 7 . Terrain Destroyed 302 | . . . 6 1 . 49 65 39 . . 13 53 27 1 . 16 7 6 19 . Melee 143 | . . . 6 1 . 3 17 32 . . 13 49 4 . . 16 2 . . . Projectile 45 | . . . . . . . . . . . . 4 10 1 . . 5 6 19 . AOE 114 | . . . . . . 46 48 7 . . . . 13 . . . . . . . Terrain Rammed . | . . . . . . . . . . . . . . . . . . . . . Walls Destroyed . | . . . . . . . . . . . . . . . . . . . . . Machines Disabled . | . . . . . . . . . . . . . . . . . . . . . Actions | -11 -10 -10 -9 -9 -9 -8 -8 -7 -7 -7 -6 -5 -5 -5 -5 -5 -4 -4 -4 -4 --------- Run | Yrd Mat Min Mat Min Exi Min Mat Fac Low Low Fac Fac Ext Cet Arc Hub Fac Upp Upp War Total 21612 | 128 350 189 813 191 290 316 1771 4449 331 358 2187 3652 2043 320 182 963 930 510 814 825 Wait 3433 | 15 4 4 110 . . 5 536 563 11 10 311 594 568 50 16 67 392 37 80 60 Move 16634 | 84 330 183 599 185 281 279 1107 3598 316 343 1772 2787 1254 263 152 833 480 403 711 674 Hop 84 | . . . 3 5 . 1 11 14 . . 5 11 11 3 1 13 5 1 . . Pick Up 83 | 2 5 1 6 . 1 . 9 20 . . 4 7 8 . 2 1 5 6 1 5 Fast Attach 125 | 3 1 . 13 . . . 7 17 . . 10 26 12 . 1 6 13 10 1 5 Attach 54 | . . . 1 . . 3 8 9 . 1 2 7 9 . 1 2 3 6 . 2 Detach 33 | . . . 1 . . 3 3 8 . . . 5 6 . . 2 3 2 . . Swap 80 | . 1 . 4 . 1 3 13 12 . 1 19 13 10 . 2 . . . . 1 Drop 134 | 1 1 1 12 . 2 . 15 26 . 1 10 20 15 . 4 6 5 5 2 8 Fire 260 | 23 8 . 40 . . 6 8 5 . . . 6 94 4 1 . 17 29 19 . Melee 457 | . . . 24 1 5 16 54 105 4 2 48 134 11 . 2 33 7 11 . . Ram 1 | . . . . . . . . . . . . . 1 . . . . . . . Kick . | . . . . . . . . . . . . . . . . . . . . . Crush . | . . . . . . . . . . . . . . . . . . . . . Escape Stasis 128 | . . . . . . . . 71 . . . 35 22 . . . . . . . Rewire 92 | . . . . . . . . . . . . . 22 . . . . . . 70 Trap 14 | . . . . . . . . 1 . . 6 7 . . . . . . . . Miscellaneous . | . . . . . . . . . . . . . . . . . . . . . Route ------- -11/Scrapyard -10/Materials (discovered 3 exits: *Mat / [*Min x2]) -10/Mines -9/Materials (discovered 2 exits: [*Min x2]) -9/Mines (discovered 2 exits: *Mat / *Exi) -9/Exiles (discovered 2 exits: [*Min x2]) -8/Mines -8/Materials (discovered 2 exits: *Fac x2) -7/Factory (discovered 6 exits: *Fac x4 / *Low x2) -7/Lower Caves -7/Lower Caves -6/Factory (discovered 5 exits: *Fac x3 / Low x2) -5/Factory (discovered 7 exits: *Fac x3 / Upp x2 / *Ext x2) -5/Extension (discovered 3 exits: *Fac x2 / *Cet) -5/Cetus (discovered 2 exits: *Fac / *Arc) -5/Archives (discovered 2 exits: *Hub x2) -5/Hub_04(d) (discovered 2 exits: *Fac x2) -4/Factory (discovered 2 exits: *Upp x2) -4/Upper Caves -4/Upper Caves (discovered 2 exits: *Res / *War) -4/Warlord History --------- Turn | Location | Event 2 | -11/Scrapyard | Discovered new exit (range 16) 143 | -11/Scrapyard | Entered Materials 197 | -10/Materials | Discovered new exit (range 7) 232 | -10/Materials | Discovered new exit (range 9) 311 | -10/Materials | Build established: Mutant 342 | -10/Materials | Discovered new exit (range 3) 372 | -10/Materials | Central database locked down 443 | -10/Materials | Entered Mines 446 | -10/Mines | Assembled infested the area 451 | -10/Mines | Assisted by a Guerilla fighting off Assembled 458 | -10/Mines | Learned location of Zion (-6) 482 | -10/Mines | Found a hidden stash of uninstalled traps 511 | -10/Mines | Received a Rocket Launcher from a helpful Derelict 528 | -10/Mines | Discovered new exit (range 7) 540 | -10/Mines | Entered Materials 540 | -9/Materials | Evolved 2 slots: Propulsion x1, Utility x1 543 | -9/Materials | Discovered new exit (range 18) 1065 | -9/Materials | Discovered new exit (range 18) 1079 | -9/Materials | Build established: Scavenger-Mutant 1079 | -9/Materials | Entered Mines 1105 | -9/Mines | Deemed a non-threat by the Exiles lab entrance 1106 | -9/Mines | Discovered new exit (range 5) 1119 | -9/Mines | Discovered new exit (range 12) 1149 | -9/Mines | Entered Exiles 1155 | -9/Exiles | Discovered new exit (range 17) 1160 | -9/Exiles | Met 8R-AWN 1165 | -9/Exiles | Met EX-HEX 1187 | -9/Exiles | Met EX-DEC 1205 | -9/Exiles | Met EX-BIN 1212 | -9/Exiles | Aligned with FarCom system 1213 | -9/Exiles | Given EX-Vault access code 1221 | -9/Exiles | Opened EX-Vault 1223 | -9/Exiles | Found Trap Reconfigurator 1230 | -9/Exiles | Warned to stay clear of 0b10 Research branches 1253 | -9/Exiles | Discovered new exit (range 10) 1256 | -9/Exiles | Left Exiles lab with Trap Reconfigurator 1256 | -9/Exiles | Entered Mines 1419 | -8/Mines | Discovered new exit (range 9) 1422 | -8/Mines | Entered Materials 1422 | -8/Materials | Evolved 2 slots: Propulsion x1, Utility x1 1823 | -8/Materials | Central database locked down 1940 | -8/Materials | Build established: Sprinter 2030 | -8/Materials | Repaired Lgt. Deuterium Engine 2079 | -8/Materials | Discovered new exit (range 4) 2515 | -8/Materials | Discovered new exit (range 14) 2528 | -8/Materials | Entered Factory 2528 | -7/Factory | Evolved 2 slots: Utility x2 2701 | -7/Factory | Build established: Hacker-Sprinter 2706 | -7/Factory | Discovered new exit (range 15) 3023 | -7/Factory | Repaired Imp. Light Armor Plating 3496 | -7/Factory | Discovered new exit (range 15) 3655 | -7/Factory | Repaired Imp. Light Armor Plating 3678 | -7/Factory | Discovered new exit (range 16) 3738 | -7/Factory | Discovered new exit (range 16) 3940 | -7/Factory | Repaired Greatsword 3955 | -7/Factory | Repaired Sml. Storage Unit 3985 | -7/Factory | Repaired Imp. Flight Unit 4123 | -7/Factory | Identified exit to Lower Caves 4434 | -7/Factory | Repaired Greatsword 4455 | -7/Factory | Discovered new exit (range 12) 4567 | -7/Factory | Entered Lower Caves 4578 | -7/Lower Caves | Learned Factory interactive machine intel 4607 | -7/Lower Caves | Attracted the attention of an 0b10 checkpoint 4627 | -7/Lower Caves | Encountered a Warlord checkpoint 4660 | -7/Lower Caves | Discovered new exit (range 11) 4676 | -7/Lower Caves | Entered another Lower Caves area 4695 | -7/Lower Caves | Discovered new exit (range 8) 4788 | -7/Lower Caves | Entered Factory 4788 | -6/Factory | Evolved 2 slots: Utility x2 4789 | -6/Factory | Loaded intel: 52 interactive machine locations 4825 | -6/Factory | Central database locked down 4835 | -6/Factory | Discovered new exit (range 10) 4945 | -6/Factory | Repaired Greatsword 4981 | -6/Factory | Spotted B-75 Beast 5224 | -6/Factory | Discovered new exit (range 7) 5229 | -6/Factory | Identified exit to Lower Caves 5291 | -6/Factory | Discovered new exit (range 5) 5465 | -6/Factory | Repaired Greatsword 5789 | -6/Factory | Entered another Factory area 5789 | -5/Factory | Evolved 2 slots: Propulsion x2 5790 | -5/Factory | Identified exit to Extension 5880 | -5/Factory | Discovered new exit (range 7) 6041 | -5/Factory | Repaired Imp. Medium Armor Plating 6323 | -5/Factory | Repaired Greatsword 6354 | -5/Factory | Repaired Imp. VTOL Module 6389 | -5/Factory | Search patrols dispatched 6712 | -5/Factory | Identified exit to Upper Caves 6774 | -5/Factory | Fabricated Imp. Hacking Suite? 6947 | -5/Factory | Repaired Greatsword 6983 | -5/Factory | Repaired Imp. Cesium-ion Thruster 7013 | -5/Factory | Repaired Mic. Fission Core 7060 | -5/Factory | Found Prototype Launcher 7060 | -5/Factory | Identified Tesla Bomb Launcher 7172 | -5/Factory | Discovered new exit (range 12) 7386 | -5/Factory | Discovered new exit (range 15) 7405 | -5/Factory | Fabricated Nuclear Pulse Array? 7416 | -5/Factory | Fabricated Adv. System Shield? 7589 | -5/Factory | First assault squad dispatched 7696 | -5/Factory | Entered Extension 7863 | -5/Extension | Energy Cycler disabled 7863 | -5/Extension | Rescued a captive Derelict 7864 | -5/Extension | Rescued a captive Derelict 7866 | -5/Extension | Rescued a captive Derelict 7868 | -5/Extension | Rescued a captive Derelict 7869 | -5/Extension | Rescued a captive Derelict 7872 | -5/Extension | Rescued a captive Derelict 8137 | -5/Extension | Extracted ID and sensor layout for unrecognized location from A7's data core 8137 | -5/Extension | Discovered new exit (range 16) 8208 | -5/Extension | Spotted B-75 Beast 8221 | -5/Extension | Allies destroyed B-75 Beast 8271 | -5/Extension | Disrupted transfer network 8299 | -5/Extension | Identified exit to Cetus 8404 | -5/Extension | Lost 3 parts (1p1u1w) 8458 | -5/Extension | Discovered new exit (range 16) 8472 | -5/Extension | Found Imp. Powered Armor 9055 | -5/Extension | Entered Cetus 9061 | -5/Cetus | Spotted Cetus Guard 9061 | -5/Cetus | Spotted Cetus Guard 9062 | -5/Cetus | Spotted Cetus Guard 9069 | -5/Cetus | Discovered new exit (range 16) 9090 | -5/Cetus | Spotted Cetus Guard 9184 | -5/Cetus | Discovered new exit (range 15) 9190 | -5/Cetus | Spotted Cetus Guard 9190 | -5/Cetus | Spotted Cetus Guard 9197 | -5/Cetus | Entered Archives 9218 | -5/Archives | Met Zhirov 9222 | -5/Archives | Unable to access archive contents 9224 | -5/Archives | Reinforcements dispatched to Archives 9225 | -5/Archives | Discovered new exit (range 15) 9237 | -5/Archives | Discovered new exit (range 16) 9245 | -5/Archives | Read partially decrypted archive contents 9249 | -5/Archives | Unable to access archive contents 9269 | -5/Archives | Reinforcements dispatched to Archives 9271 | -5/Archives | Zhirov warped through subspace 9279 | -5/Archives | Entered Hub_04(d) 9420 | -5/Hub_04(d) | Discovered new exit (range 14) 9638 | -5/Hub_04(d) | Network Hub disabled 9673 | -5/Hub_04(d) | Core integrity fell below 50% 9680 | -5/Hub_04(d) | Spotted Lightning 9691 | -5/Hub_04(d) | Spotted Lightning 9718 | -5/Hub_04(d) | Lost 4 parts (3n1u) 9761 | -5/Hub_04(d) | Discovered new exit (range 3) 9761 | -5/Hub_04(d) | Entered Factory 9761 | -4/Factory | Evolved 2 slots: Power x1, Propulsion x1 9813 | -4/Factory | Repaired Nuclear Pulse Array 9988 | -4/Factory | Build established: Hacker-Mutant 10291 | -4/Factory | Lost 5 parts (1p1n2u1w) 10483 | -4/Factory | Identified exit to Upper Caves 10505 | -4/Factory | Build established: Mutant 10574 | -4/Factory | System corruption reached 10% 10667 | -4/Factory | Entered Upper Caves 10714 | -4/Upper Caves | Core integrity fell below 50% 10756 | -4/Upper Caves | Lost 9 parts (1p1n4u3w) 10976 | -4/Upper Caves | Attracted the attention of an 0b10 checkpoint 11052 | -4/Upper Caves | Learned 8 Research zone layouts 11072 | -4/Upper Caves | Lost 5 parts (1p2n2w) 11158 | -4/Upper Caves | Learned Factory trap positions 11158 | -4/Upper Caves | Learned Factory security intel 11158 | -4/Upper Caves | Learned Extension security intel 11182 | -4/Upper Caves | Discovered new exit (range 9) 11204 | -4/Upper Caves | Identified exit to Upper Caves 11204 | -4/Upper Caves | Entered another Upper Caves area 11237 | -4/Upper Caves | Identified exit to Research 11264 | -4/Upper Caves | Spotted B-86 Titan 11537 | -4/Upper Caves | Encountered a Warlord checkpoint 11560 | -4/Upper Caves | Core integrity fell below 20% 11614 | -4/Upper Caves | Discovered new exit (range 13) 11618 | -4/Upper Caves | Identified exit to Warlord 11619 | -4/Upper Caves | Entered Warlord 11637 | -4/Warlord | System corruption cleaned by Quarantine Array 12034 | -4/Warlord | Build established: Commander-Mutant 12168 | -4/Warlord | Visited the Vortex Lab 12175 | -4/Warlord | Found Prototype Energy Gun 12179 | -4/Warlord | Found Prototype Energy Gun 12179 | -4/Warlord | Identified Vortex Rail (x2) 12180 | -4/Warlord | Warlord's base attacked by MAIN.C 12191 | -4/Warlord | Found Prototype Piercing Weapon 12195 | -4/Warlord | Found Prototype Piercing Weapon 12530 | -4/Warlord | Warlord forces counterattacked 12678 | -4/Warlord | Self-destructed Last Messages --------------- plan. The exit is outside the main gate in the north caves. Use the counterattack as cover, go!" 12542_ Connecting with WAR.Sys... 12570_ ANNOUNCEMENT: MAIN.C reinforcements approaching through caves, arriving soon. 12580_ ANNOUNCEMENT: Detected 3 Grunt squads, 1 Melee squad, with prototype support. 12654_ YZ-O30(M) suffers critical hit (Burn). 12657_ J5-FAY(g) destroyed. 12658_ The unstable cave ceiling collapses. 12665_ Slug penetrates YZ-O30(M). 12665_ Destroyed Arc Thrower. 12665_ Slug penetrates VW-TYS(g). 12666_ Acquired Arm. Treads. 12667_ Acquired 52 matter. 12669_ VW-TYS(g) destroyed. 12670_ ANNOUNCEMENT: MAIN.C reinforcements approaching through caves, arriving soon. 12671_ Dropped Backup Power III. Map ----- +----------------------------------------------------+ | ????????????????????????????????????#||| #???????? | | ??????#####?????????????????????????#||| #???????? | | ??????# ########??????????????????# #???????? | | ??????# #??????????????????# #???????? | | ??????# ###/## ##########???#####?# #???????? | | ??????##+### # # #???# * #?### ##???????? | | ?????? ## / # #???#[ !#???#+#????????? | | ?????# ## # # #???# #???# #????????? | | ?????# ## # # #???# #???# #????????? | | ?????# ## # # #???##+###### #????????? | | ?????####### # # #???# #????????? | | ???????????# # # ##### ### #????????? | | ???????????##### # + #?# #????????? | | ???????????????# # # #?# #????????? | | ???????????????# #####+#### ###/###??????? | | ??????????###### ^ ^^ ^^ # #??????? | | ??????????# # # #??????? | | ??????????# # " "" " " "" " # #??????? | | ??????????# # """""" """""" #######??????? | | ??????????# # """" """" #????????????? | | ??????????# + #????????????? | | ??????????# # #????????????? | | ??????????# + #????????????? | | ??????????# #### ##+######## #????????????? | | ??????????# ## #??# ##????????????? | | ??????????####### @ #?## #??????""?????? | | ????????????????# *### #?????#""#????? | | ????????????????# !*# " ###???#""#????? | | ????????????????# ! [# #####""#####? | | ????????????????# # !"" "## | | ????????????????# " %%"! """ | | ????????????????########## # % %![!]!!! """ | | ???????????????# # [/%%!%[! | | ???????????????# """ # =/![!=%%% | | ???????????????# """ # !%/%!%==%% | | ???????????????# "" " ![=/[%=%=!! | | ???????????????# " %=[*!=="" """ | | ???????????????# "" # % !!==*"" """ | | ???????????????# """ + # !%= *==["" "## | | ???????????????# """ # # # ! #####""#####? | | ???????????????# # ###???#""#????? | | ???????????????# # #?????#""#????? | | ???????????????# # """ #??????""?????? | | ???????????????######### """ ##????????????? | | ??????????????########## """ #????????????? | | ??????????????# # """ #????????????? | | #############?# """" # """ #????????????? | | """"""""""""#?# """""" # #????????????? | | "" """""""#?# " "" " + #????????????? | | """X ""#?# # #########????????????? | +----------------------------------------------------+ Best States ------------- Heat Dissipation 133 Energy Generation 19 Energy Capacity 310 Matter Stores 313 Matter Capacity 600 Sight Range 20 Terrain Scan Range 16 Terrain Scan Density 10 ECM Strength 1 Power Amplification 20 Corruption Block 10 Armor Coverage 400 Resistance: TH 10 Evasion (%) 75 Targeting Accuracy 8 Melee Accuracy 12 Target Analysis 5 Armor Integrity Analysis 40 Recoil Reduction 1 Offensive Hacking 40 Defensive Hacking 26 Trap Extractor Capacity 6 Item Schematics ----------------- Shield Generator | -8/Materials | Extracted Shotgun | -8/Materials | Extracted Assault Cannon | -8/Materials | Extracted Hpw. Shotgun | -8/Materials | Extracted Imp. Targeting Computer | -8/Materials | Extracted Greatsword | -7/Factory | Scanalyzed System Restoration Module | -7/Factory | Scanalyzed Imp. VTOL Module | -7/Factory | Scanalyzed Melee Analysis Suite | -7/Factory | Extracted Recalibrator | -7/Factory | Scanalyzed Imp. Medium Armor Plating | -7/Factory | Scanalyzed Lrg. Storage Unit | -7/Factory | Extracted Power Amplifier | -6/Factory | Extracted Imp. Deuterium Engine | -6/Factory | Extracted Imp. Hardlight Generator | -6/Factory | Extracted Imp. Hacking Suite | -5/Factory | Hacked Imp. System Shield | -5/Factory | Hacked Powered Armor | -5/Factory | Hacked Adv. System Shield | -5/Factory | Hacked Nuclear Pulse Array | -5/Factory | Hacked Robot Schematics ------------------ G-50 Soldier | -5/Factory | Hacked Fabricated ------------ Imp. Hacking Suite | x1 | -5/Factory Nuclear Pulse Array | x1 | -5/Factory Adv. System Shield | x1 | -5/Factory Alien Tech Used ----------------- None Achievements -------------- Overkill Challenges ------------ None Game ------ Seed BoreCooledDeflector Manual? 0 Play Time 03:52:29 Cumulative 91.1 hours Start 2024.09.19 @ 21:06:15 End 2024.09.21 @ 04:46:55 Sessions 7 Manual Loads 0 Difficulty Rogue Special Mode None Game No. 57 Rogue 21 Adventurer 36 Explorer 0 Win Type - Total 2 Types 2/0/0/0/0/0/0/0/0 Lore% 48 Gallery% 54 Achievement% 49 Wizard Run 0 Options --------- Layout 1 ASCII 0 Keyboard 0 Movement Numpad Keybinds 0 Fullscreen 1 Font 48/Smallcaps Map View 50x35 Zoom Use 0% Tactical HUD 1 Map Filters NONE Filters NONE Steam 1 RUN: d114eeb4-570c-493e-aa8a-9a4202753c69